bitfinex/quotes_BTCUSD_20250523
["timestamp","ask_amount","ask_price","bid_price","bid_amount"]
[1748004092915,0.28359472,108550.0,108540.0,0.60962249]
[1748004093342,0.27438306,108550.0,108540.0,0.60040981]
[1748004093541,0.26617114,108550.0,108540.0,0.60040981]
[1748004093928,0.27538281,108550.0,108540.0,0.60040981]
[1748004094129,0.28459506,108550.0,108540.0,0.60962249]
[1748004094351,0.08192375,108550.0,108540.0,0.61883508]
[1748004094556,0.002,108550.0,108540.0,0.61883508]
[1748004094812,0.09013575,108550.0,108540.0,1.44739508]
[1748004095172,0.28359489,108550.0,108540.0,1.42896989]
[1748004095465,0.09013634,108550.0,108540.0,1.42896998]
[1748004095703,0.27438323,108550.0,108540.0,1.43818283]
[1748004095865,0.27438323,108550.0,108540.0,0.61917027]
[1748004096052,0.0625,108550.0,108540.0,0.62838286]
[1748004096269,0.002,108550.0,108540.0,0.62838286]
[1748004096478,0.01121166,108550.0,108540.0,0.62838286]
[1748004096703,0.002,108550.0,108540.0,0.62838286]
[1748004096911,0.01121158,108550.0,108540.0,0.62838286]
[1748004097115,0.02042341,108550.0,108540.0,0.62838286]
[1748004097348,0.02963533,108550.0,108540.0,0.90450286]
[1748004097558,0.03884741,108550.0,108540.0,0.90450286]
[1748004097765,0.04805958,108550.0,108540.0,0.90450286]
[1748004097962,0.02963533,108550.0,108540.0,0.90450286]
[1748004098164,0.01121158,108550.0,108540.0,0.90450286]
[1748004098393,0.02042341,108550.0,108540.0,0.90450286]
[1748004098631,0.002,108550.0,108540.0,0.90450286]
[1748004098836,0.002,108550.0,108540.0,1.73404842]
[1748004099432,0.01121158,108550.0,108540.0,1.73404842]
[1748004099571,0.002,108550.0,108540.0,1.45792842]
[1748004099771,0.002,108550.0,108540.0,2.28652842]
[1748004100175,0.01121158,108550.0,108540.0,2.28652842]
[1748004100836,0.02963516,108550.0,108540.0,1.45792842]
[1748004100978,0.06974733,108550.0,108540.0,2.19698286]
[1748004101207,0.101948,108550.0,108540.0,2.18777027]
[1748004101426,0.101948,108550.0,108540.0,2.19698286]
[1748004101700,0.26777098,108550.0,108540.0,0.9502]
[1748004101907,0.25467688,108540.0,108530.0,0.01100562]
[1748004102115,0.25467688,108540.0,108530.0,0.35100562]
[1748004102325,0.25467688,108540.0,108530.0,0.01100562]
[1748004102495,0.26388981,108540.0,108530.0,0.2045005]
[1748004102730,0.25467688,108540.0,108530.0,0.35100562]
[1748004102934,0.24546386,108540.0,108530.0,0.59022025]
[1748004103148,0.24546386,108540.0,108530.0,0.01100562]
[1748004103353,0.33500942,108540.0,108530.0,0.01200562]
[1748004103782,0.33700942,108540.0,108530.0,0.001]
[1748004104650,0.43567293,108540.0,108530.0,0.001]
[1748004104912,0.52519444,108540.0,108530.0,0.001]
[1748004105121,0.79388237,108540.0,108530.0,0.001]
[1748004105327,0.52519444,108540.0,108530.0,0.001]
[1748004105537,0.45177237,108540.0,108530.0,0.001]
[1748004105742,0.45177237,108540.0,108510.0,0.2027428]
[1748004105743,0.21194121,108520.0,108510.0,0.1935274]
[1748004105925,0.27534121,108520.0,108510.0,0.1935274]
[1748004106139,0.266127,108520.0,108510.0,0.1935274]
[1748004106317,0.266127,108520.0,108500.0,0.54465331]
[1748004106318,0.23334525,108510.0,108500.0,0.54465331]
[1748004106521,0.08153105,108510.0,108500.0,0.5630858]
[1748004106721,0.08153105,108510.0,108500.0,0.61801959]
[1748004106969,0.08153105,108510.0,108500.0,0.56323921]
[1748004107081,0.07131531,108510.0,108500.0,0.56323921]
[1748004107293,0.08053079,108510.0,108500.0,0.83935921]
[1748004107509,0.22115584,108520.0,108510.0,0.21196099]
[1748004107704,0.25315584,108520.0,108510.0,0.20274585]
[1748004107900,0.04121421,108520.0,108510.0,0.22117622]
[1748004108171,0.23472398,108530.0,108520.0,0.19351271]
[1748004108379,0.04121344,108530.0,108520.0,0.21194172]
[1748004108604,0.18424689,108550.0,108520.0,0.53351211]
[1748004108843,0.01842722,108530.0,108520.0,0.81888632]
[1748004109066,0.00921344,108530.0,108520.0,0.81888632]
[1748004109308,0.00921166,108550.0,108530.0,0.19349428]
[1748004109530,0.01842544,108540.0,108530.0,0.53349454]
[1748004109754,0.22111542,108540.0,108530.0,0.55192202]
[1748004110011,0.19349479,108530.0,108510.0,0.19353003]
[1748004110233,0.0634,108540.0,108530.0,0.1934773]
[1748004110459,0.23487098,108550.0,108530.0,0.58426386]
[1748004110673,0.26508981,108540.0,108530.0,0.74]
[1748004110871,0.08382595,108540.0,108530.0,0.92428084]
[1748004111104,0.277303,108540.0,108530.0,0.93349479]
[1748004111229,0.277303,108540.0,108530.0,0.56113571]
[1748004111230,0.26508947,108540.0,108530.0,0.56113571]
[1748004111430,0.26508947,108540.0,108520.0,0.18429782]
[1748004111431,0.01842748,108530.0,108520.0,0.18429782]
[1748004111652,0.05894152,108530.0,108520.0,0.542727]
[1748004111860,0.05894152,108530.0,108510.0,0.20268102]
[1748004111861,0.21194121,108520.0,108510.0,0.20268102]
[1748004112060,0.05884279,108520.0,108510.0,0.82805676]
[1748004112273,0.28235652,108520.0,108510.0,0.54268145]
[1748004112531,0.27314206,108520.0,108510.0,0.55189701]
[1748004112687,0.08884424,108520.0,108510.0,0.57032772]
[1748004112901,0.27314206,108520.0,108510.0,0.57032772]
[1748004113404,0.27314206,108520.0,108510.0,0.55189701]
[1748004113616,0.26392751,108520.0,108510.0,0.341]
[1748004113849,0.26392751,108520.0,108510.0,0.53453054]
[1748004114063,0.19349488,108530.0,108520.0,0.21194172]
[1748004114294,0.23580849,108530.0,108520.0,0.20272734]
[1748004115646,0.26345001,108530.0,108520.0,0.20272734]
[1748004115878,0.02042731,108530.0,108520.0,0.22115618]
[1748004116083,0.02964118,108530.0,108520.0,0.22115618]
[1748004116307,0.28583597,108530.0,108520.0,0.22115618]
[1748004116521,0.26274941,108530.0,108520.0,0.26687568]
[1748004116728,0.23235001,108530.0,108520.0,0.23037073]
[1748004116940,0.02142731,108530.0,108520.0,0.23037013]
[1748004117139,0.01221327,108530.0,108520.0,0.23037013]
[1748004117358,0.02142671,108530.0,108520.0,0.23037013]
[1748004117574,0.0184285,108520.0,108510.0,0.80968986]
[1748004117783,0.0184285,108520.0,108510.0,0.34]
[1748004117784,0.25415567,108520.0,108510.0,0.34]
[1748004117966,0.26752743,108520.0,108510.0,0.53353054]
[1748004118119,0.25831271,108520.0,108510.0,0.34]
[1748004118934,0.25831271,108520.0,108510.0,0.54274585]
[1748004119163,0.25831271,108520.0,108510.0,0.54274602]
[1748004119563,0.25831271,108520.0,108510.0,0.53453045]
[1748004119760,0.24909782,108520.0,108510.0,0.34]
[1748004119964,0.25933037,108510.0,108500.0,0.21251499]
[1748004120219,0.25933037,108510.0,108500.0,0.54329874]
[1748004120393,0.25933037,108510.0,108500.0,0.55251516]
[1748004120578,0.25933037,108510.0,108500.0,0.56173157]
[1748004120779,0.25933037,108510.0,108500.0,0.57094782]
[1748004121363,0.25933037,108510.0,108500.0,0.34975143]
[1748004121576,0.2501148,108510.0,108500.0,0.34975143]
[1748004121990,0.33966036,108510.0,108500.0,0.35075143]
[1748004122217,0.33966036,108510.0,108500.0,0.34125341]
[1748004122831,0.33966036,108510.0,108500.0,0.34225341]
[1748004123040,0.34166036,108510.0,108500.0,0.34225341]
[1748004123456,0.34166036,108510.0,108500.0,0.34025341]
[1748004123707,0.34266036,108510.0,108500.0,0.34025341]
[1748004124749,0.34266036,108510.0,108500.0,0.00025341]
[1748004126437,1.31944121,108510.0,108500.0,0.00025341]
[1748004126662,1.58812914,108510.0,108500.0,0.00025341]
[1748004126887,1.24212914,108510.0,108500.0,0.00025341]
[1748004127332,1.24112914,108510.0,108500.0,0.00025341]
[1748004127595,1.33065065,108510.0,108500.0,0.00025341]
[1748004128249,0.04211981,108460.0,108450.0,0.01110562]
[1748004128476,0.34806514,108460.0,108450.0,0.01110562]
[1748004128920,0.00921939,108460.0,108450.0,0.1955224]
[1748004129144,0.01843886,108460.0,108450.0,0.25641998]
[1748004129366,0.20283914,108460.0,108450.0,0.0535623]
[1748004129605,0.35782578,108460.0,108450.0,0.01310562]
[1748004129816,0.35782578,108460.0,108450.0,0.01210562]
[1748004130036,0.35782578,108460.0,108450.0,0.01110562]
[1748004130245,0.35982578,108460.0,108450.0,0.0001]
[1748004130452,0.36182578,108460.0,108450.0,0.0001]
[1748004131586,0.19776066,108460.0,108450.0,0.0001]
[1748004131795,0.13682915,108460.0,108450.0,0.0001]
[1748004132232,0.49506264,108460.0,108450.0,0.0001]
[1748004132682,0.13682915,108460.0,108450.0,0.0001]
[1748004133898,0.13682915,108460.0,108450.0,0.19373761]
[1748004134255,0.13682915,108460.0,108450.0,0.0001]
[1748004136738,0.00414108,108460.0,108450.0,0.0001]
[1748004136945,0.00414108,108460.0,108450.0,0.55448344]
[1748004137153,0.00414108,108460.0,108450.0,1.40851826]
[1748004137537,0.00414108,108460.0,108450.0,0.58507826]
[1748004137741,0.00414108,108460.0,108450.0,1.40851826]
[1748004137947,0.04101897,108460.0,108450.0,0.54295802]
[1748004138163,0.23413659,108460.0,108450.0,0.89765875]
[1748004138362,0.23413659,108460.0,108450.0,0.49765875]
[1748004138568,0.22491737,108460.0,108450.0,0.49765875]
[1748004138775,0.22491737,108460.0,108450.0,0.50687899]
[1748004138776,0.03129762,108460.0,108450.0,0.50687899]
[1748004138976,0.04051752,108460.0,108450.0,0.50687899]
[1748004139204,0.23413727,108460.0,108450.0,0.50687899]
[1748004139548,0.23413727,108460.0,108450.0,0.49765875]
[1748004139805,0.02207781,108460.0,108450.0,0.50687899]
[1748004139963,0.03129754,108460.0,108450.0,0.50687899]
[1748004140161,0.04051726,108460.0,108450.0,0.84687899]
[1748004140404,0.00363895,108460.0,108450.0,0.84687899]
[1748004140971,0.01285825,108460.0,108450.0,0.57051899]
[1748004141199,0.01285825,108460.0,108450.0,0.84687899]
[1748004141793,0.01285825,108460.0,108450.0,1.24687899]
[1748004141999,0.02207772,108460.0,108450.0,1.24687899]
[1748004142504,0.22491712,108460.0,108450.0,0.95207843]
[1748004142726,0.20647835,108460.0,108450.0,1.20077678]
[1748004142901,0.20647835,108460.0,108450.0,1.22843868]
[1748004143306,0.21569833,108460.0,108450.0,1.22843868]
[1748004143509,0.21569833,108460.0,108450.0,0.80999761]
[1748004143707,0.21569833,108460.0,108450.0,0.81921827]
[1748004144650,0.20647792,108460.0,108450.0,0.82843885]
[1748004144854,0.21569782,108460.0,108450.0,0.81921827]
[1748004145058,0.20647835,108460.0,108450.0,0.81921827]
[1748004145255,0.20647835,108460.0,108450.0,0.82843885]
[1748004145449,0.20647835,108460.0,108450.0,0.54285827]
[1748004145670,0.20647835,108460.0,108450.0,0.55207885]
[1748004146079,0.20647835,108460.0,108450.0,0.56129926]
[1748004146429,0.20647835,108460.0,108450.0,0.55207885]
[1748004146584,0.20647835,108460.0,108450.0,0.54285836]
[1748004146771,0.20647835,108460.0,108450.0,0.55207902]
[1748004146971,0.20647835,108460.0,108450.0,0.5612996]
[1748004147194,0.20647835,108460.0,108450.0,0.56129926]
[1748004147195,0.02207858,108460.0,108450.0,0.56129926]
[1748004147396,0.21569833,108460.0,108450.0,0.56129926]
[1748004148116,0.21569833,108460.0,108450.0,0.83765926]
[1748004148407,0.21569833,108460.0,108450.0,0.81921819]
[1748004148632,0.2064786,108460.0,108450.0,0.81921819]
[1748004148832,0.20285802,108450.0,108440.0,1.20079378]
[1748004149044,0.01844124,108450.0,108440.0,1.21923663]
[1748004149214,0.01844073,108450.0,108440.0,1.23767915]
[1748004149426,0.02766139,108450.0,108440.0,1.23767915]
[1748004149830,0.02731412,108450.0,108440.0,1.23767915]
[1748004150402,0.02831412,108450.0,108440.0,1.23767915]
[1748004150631,0.02009346,108450.0,108440.0,1.23767915]
[1748004150844,0.02044082,108450.0,108440.0,1.23767915]
[1748004151237,0.21407783,108450.0,108440.0,0.92443378]
[1748004151422,0.24657825,108450.0,108440.0,0.59781068]
[1748004151623,0.24657825,108450.0,108440.0,0.56131966]
[1748004151840,0.24657825,108450.0,108440.0,0.83767966]
[1748004152097,0.02044081,108450.0,108440.0,0.84690075]
[1748004152272,0.02966147,108450.0,108440.0,0.84690075]
[1748004152454,0.002,108450.0,108440.0,0.84690075]
[1748004153655,0.01122007,108450.0,108440.0,0.84690075]
[1748004154034,0.002,108450.0,108440.0,1.24690075]
[1748004154447,0.01122015,108450.0,108440.0,1.24690075]
[1748004154650,0.01122007,108450.0,108440.0,1.24690075]
[1748004154852,0.01122015,108450.0,108440.0,1.24690075]
[1748004155129,0.002,108450.0,108440.0,1.24690075]
[1748004156511,0.0337,108450.0,108440.0,0.4]
[1748004156706,0.27727851,108450.0,108440.0,0.46083378]
[1748004157067,0.23655819,108450.0,108440.0,0.2764]
[1748004157688,0.01122007,108450.0,108440.0,0.82849781]
[1748004157892,0.02966063,108450.0,108440.0,0.82849781]
[1748004158353,0.002,108450.0,108440.0,0.82849781]
[1748004158555,0.01122015,108450.0,108440.0,0.82849781]
[1748004158695,0.02044047,108450.0,108440.0,0.82849781]
[1748004159297,0.02966096,108450.0,108440.0,0.82849781]
[1748004159708,0.03888162,108450.0,108440.0,0.82849781]
[1748004159918,0.02966096,108450.0,108440.0,0.82849781]
[1748004160121,0.22329849,108450.0,108440.0,0.81927681]
[1748004160321,0.23525802,108450.0,108440.0,0.81005546]
[1748004160552,0.23525802,108450.0,108440.0,0.81927697]
[1748004160757,0.23525802,108450.0,108440.0,0.8284984]
[1748004161361,0.23525802,108450.0,108440.0,0.81927697]
[1748004161570,0.23525802,108450.0,108440.0,0.5520984]
[1748004161795,0.23525802,108450.0,108440.0,0.83771974]
[1748004161977,0.23525802,108450.0,108440.0,0.8284984]
[1748004162595,0.23525802,108450.0,108430.0,0.55730372]
[1748004162596,0.20287689,108440.0,108430.0,0.55730372]
[1748004162800,0.20287689,108440.0,108430.0,0.49370389]
[1748004163006,0.20287689,108440.0,108430.0,0.50830736]
[1748004163329,0.20287689,108440.0,108430.0,0.64541193]
[1748004163446,0.19365546,108440.0,108430.0,0.82986272]
[1748004163661,0.19365546,108440.0,108430.0,0.84771013]
[1748004163864,0.0635,108450.0,108440.0,0.21209781]
[1748004164064,0.20285819,108450.0,108440.0,0.20287672]
[1748004164266,0.20285819,108450.0,108440.0,0.19365538]
[1748004164467,0.22663761,108450.0,108440.0,0.00862505]
[1748004164672,0.22663761,108450.0,108440.0,0.21150194]
[1748004165015,0.22663761,108450.0,108440.0,0.00862505]
[1748004165016,0.42230524,108450.0,108440.0,0.00862505]
[1748004165179,0.42330524,108450.0,108440.0,0.00862505]
[1748004165383,0.25933761,108450.0,108440.0,0.19305883]
[1748004165607,0.20385819,108450.0,108440.0,0.24372031]
[1748004165823,0.20485819,108450.0,108440.0,0.26216342]
[1748004166011,0.20485819,108450.0,108440.0,0.05928653]
[1748004166212,0.20485819,108450.0,108440.0,0.24372031]
[1748004166463,0.20485819,108450.0,108440.0,0.24371953]
[1748004166668,0.20485819,108450.0,108440.0,0.23509526]
[1748004166881,0.20485819,108450.0,108440.0,0.24431686]
[1748004167300,0.19563761,108450.0,108440.0,0.05066148]
[1748004167718,0.01844243,108440.0,108430.0,0.63484362]
[1748004168012,0.01844243,108440.0,108430.0,0.81929399]
[1748004168350,0.21209832,108440.0,108430.0,0.81007332]
[1748004168550,0.23327689,108440.0,108430.0,0.34]
[1748004168762,0.23327689,108440.0,108430.0,0.53367315]
[1748004168971,0.23327689,108440.0,108430.0,0.54389577]
[1748004169229,0.23327689,108440.0,108430.0,0.341]
[1748004169440,0.23327689,108440.0,108430.0,0.001]
[1748004169639,0.19365538,108440.0,108430.0,0.001]
[1748004169846,0.19365538,108440.0,108430.0,0.18545079]
[1748004170046,0.22385538,108440.0,108430.0,0.002]
[1748004170255,0.19367324,108430.0,108420.0,1.57648652]
[1748004170460,0.02766692,108430.0,108420.0,1.77937121]
[1748004170686,0.26749552,108430.0,108420.0,0.34]
[1748004171334,0.18443378,108440.0,108430.0,0.2028956]
[1748004171501,0.21581678,108450.0,108440.0,0.19365546]
[1748004171502,0.21451678,108450.0,108440.0,0.19365546]
[1748004171741,0.0184426,108440.0,108430.0,0.20289492]
[1748004171908,0.0368852,108440.0,108430.0,0.47929492]
[1748004172266,0.21211686,108430.0,108420.0,0.52646781]
[1748004172468,0.01844379,108430.0,108420.0,0.83976]
[1748004172673,0.19365529,108440.0,108430.0,0.21211737]
[1748004172873,0.22131881,108440.0,108430.0,0.21211737]
[1748004173148,0.22131949,108440.0,108430.0,0.21211737]
[1748004173354,0.22231983,108440.0,108430.0,0.20289543]
[1748004173526,0.22231983,108440.0,108430.0,0.22133956]
[1748004174004,0.22331983,108440.0,108430.0,0.22133956]
[1748004174212,0.22331983,108440.0,108430.0,0.2305615]
[1748004174420,0.22331983,108440.0,108430.0,0.22133956]
[1748004174847,0.22331983,108440.0,108430.0,0.2305615]
[1748004175059,0.22331983,108440.0,108430.0,0.22133956]
[1748004175761,0.02966428,108440.0,108430.0,0.5070015]
[1748004176390,0.22331966,108440.0,108430.0,0.5070015]
[1748004176601,0.03888588,108440.0,108430.0,0.5070015]
[1748004176722,0.01122134,108440.0,108430.0,0.5070015]
[1748004176967,0.02044217,108440.0,108430.0,0.5070015]
[1748004177167,0.002,108440.0,108430.0,0.93654706]
[1748004177399,0.002,108440.0,108430.0,0.99924706]
[1748004177681,0.002,108440.0,108430.0,1.39924706]
[1748004178529,0.001,108440.0,108430.0,1.39924706]
[1748004178940,0.001,108440.0,108430.0,1.41478791]
[1748004179144,0.34055257,108490.0,108480.0,0.20280209]
[1748004179349,0.34972204,108490.0,108480.0,0.21202003]
[1748004179564,0.33128811,108490.0,108470.0,1.03011855]
[1748004179759,0.33128811,108490.0,108470.0,1.11044617]
[1748004179760,0.2120197,108480.0,108470.0,1.11044617]
[1748004180011,0.0092193,108460.0,108450.0,0.59164714]
[1748004180219,0.0092193,108460.0,108450.0,2.25771394]
[1748004180220,0.01843886,108460.0,108450.0,2.25771394]
[1748004180430,0.00921862,108470.0,108460.0,0.56127825]
[1748004180679,0.02765553,108470.0,108460.0,0.55205827]
[1748004180891,0.03687449,108470.0,108460.0,0.55205827]
[1748004181094,0.22125726,108470.0,108460.0,0.34]
[1748004181300,0.26472044,108470.0,108460.0,0.34]
[1748004181722,0.23332044,108470.0,108460.0,0.54283931]
[1748004181934,0.21203957,108470.0,108460.0,0.54283931]
[1748004182533,0.21403957,108470.0,108460.0,0.54283931]
[1748004182744,0.21403957,108470.0,108460.0,0.55243877]
[1748004183074,0.24603957,108470.0,108460.0,0.55243911]
[1748004183303,0.28143957,108470.0,108460.0,0.56165892]
[1748004183504,0.28143957,108470.0,108460.0,0.57087856]
[1748004183725,0.28143957,108470.0,108460.0,0.58009812]
[1748004184082,0.005,108470.0,108460.0,0.66964309]
[1748004184234,0.005,108470.0,108460.0,0.73504309]
[1748004185426,4e-05,108500.0,108490.0,0.55200006]
[1748004185639,0.00019333,108500.0,108490.0,1.51416562]
[1748004186840,0.00319333,108500.0,108490.0,1.91416562]
[1748004187561,0.00319333,108500.0,108490.0,1.85366562]
[1748004187751,0.00319333,108500.0,108490.0,1.91756562]
[1748004188541,0.00519333,108500.0,108490.0,1.91756562]
[1748004188894,0.00019333,108500.0,108490.0,1.91756562]
[1748004189307,0.00019333,108500.0,108490.0,1.91856562]
[1748004190330,0.00019333,108500.0,108490.0,6.99310647]
[1748004191021,0.00019333,108500.0,108490.0,6.53512562]
[1748004191244,0.00940915,108500.0,108490.0,1.94678562]
[1748004191459,0.02784114,108500.0,108490.0,2.22310562]
[1748004191667,0.2306055,108500.0,108490.0,2.21388878]
[1748004191872,0.0186254,108500.0,108490.0,1.41122562]
[1748004192070,0.0186254,108500.0,108490.0,2.20459169]
[1748004192288,0.00940924,108500.0,108490.0,2.22702562]
[1748004192486,0.00019333,108500.0,108490.0,2.23102562]
[1748004192708,0.00019333,108500.0,108490.0,2.22602562]
[1748004192936,0.00019333,108500.0,108490.0,2.22202562]
[1748004193159,0.00940915,108500.0,108490.0,2.23102562]
[1748004193397,0.01862523,108500.0,108490.0,2.23098562]
[1748004193617,0.03705771,108500.0,108490.0,2.23098562]
[1748004193842,0.00019333,108500.0,108490.0,2.23098562]
[1748004194722,0.00019333,108500.0,108490.0,2.29688562]
[1748004196673,0.00019333,108500.0,108490.0,7.34688562]
[1748004196901,0.00019333,108500.0,108490.0,1.45202562]
[1748004197118,0.00019333,108500.0,108490.0,2.23098562]
[1748004197345,0.00019333,108500.0,108490.0,1.41922562]
[1748004197559,0.00019333,108500.0,108490.0,2.23098562]
[1748004198020,0.00019333,108500.0,108490.0,1.41922562]
[1748004198253,0.26665769,108500.0,108490.0,0.37768]
[1748004198473,0.31919715,108500.0,108490.0,0.37768]
[1748004198695,0.26665769,108500.0,108490.0,0.37768]
[1748004199135,0.35620325,108500.0,108490.0,0.37768]
[1748004199334,0.3707441,108500.0,108490.0,0.36868]
[1748004199562,0.46026561,108500.0,108490.0,0.36868]
[1748004199843,0.46126561,108500.0,108490.0,0.36868]
[1748004200271,0.26765769,108500.0,108490.0,0.36868]
[1748004200477,0.25844153,108500.0,108490.0,0.36868]
[1748004200679,0.27687344,108500.0,108490.0,0.58068048]
[1748004200882,0.27687394,108500.0,108490.0,0.57146339]
[1748004201093,0.26765786,108500.0,108490.0,0.57146356]
[1748004201325,0.26765786,108500.0,108490.0,0.59911467]
[1748004201326,0.07410924,108500.0,108490.0,0.59911467]
[1748004201539,0.01962557,108500.0,108490.0,0.59911467]
[1748004201746,0.28389044,108500.0,108490.0,0.59911484]
[1748004202084,0.28388994,108500.0,108490.0,0.59911433]
[1748004202289,0.09955815,108500.0,108490.0,0.59911433]
[1748004202513,0.09955815,108500.0,108490.0,0.59911382]
[1748004203137,0.28389061,108500.0,108490.0,0.36868]
[1748004203355,0.2654582,108500.0,108490.0,0.36868]
[1748004203731,0.39998106,108500.0,108490.0,0.36868]
[1748004203932,0.41452191,108500.0,108490.0,0.36868]
[1748004204140,1.02320984,108500.0,108490.0,0.36868]
[1748004205037,1.02220984,108500.0,108490.0,0.36868]
[1748004205247,0.01843895,108460.0,108450.0,1.41241754]
[1748004205464,0.01843869,108460.0,108450.0,1.76163778]
[1748004205694,0.07311794,108480.0,108470.0,0.20281149]
[1748004205903,0.27593932,108470.0,108460.0,0.20283905]
[1748004206121,0.27593932,108470.0,108460.0,0.22127817]
[1748004206122,0.09155646,108470.0,108460.0,0.22127817]
[1748004206331,0.27593889,108470.0,108460.0,0.21205878]
[1748004206550,0.02765842,108460.0,108450.0,1.77106309]
[1748004206755,0.01843869,108460.0,108450.0,1.78128392]
[1748004206967,0.01843869,108460.0,108450.0,1.78028392]
[1748004208223,0.01843869,108460.0,108450.0,2.18028392]
[1748004208491,0.02765825,108460.0,108450.0,2.18028392]
[1748004209009,0.02765825,108460.0,108450.0,2.18136392]
[1748004209247,0.02765825,108460.0,108450.0,2.16016992]
[1748004209686,0.01843869,108460.0,108450.0,1.34832992]
[1748004209872,0.01843869,108460.0,108450.0,2.16020992]
[1748004210092,0.2739581,108460.0,108450.0,0.98066861]
[1748004210309,0.2739581,108460.0,108450.0,0.377606]
[1748004210310,0.26473922,108460.0,108450.0,0.377606]
[1748004210536,0.26473922,108460.0,108450.0,0.003]
[1748004210753,0.26473922,108460.0,108450.0,0.01222075]
[1748004210975,0.07111939,108460.0,108450.0,0.21507826]
[1748004211185,0.27395853,108460.0,108450.0,0.19663753]
[1748004211448,0.25551958,108460.0,108450.0,0.003]
[1748004211672,0.25551958,108460.0,108450.0,0.18741678]
[1748004211902,0.25551958,108460.0,108450.0,0.003]
[1748004212115,0.25551958,108460.0,108450.0,0.01251775]
[1748004212346,0.25551958,108460.0,108450.0,0.18741678]
[1748004212581,0.07361879,108470.0,108460.0,0.20283922]
[1748004212806,0.19360173,108470.0,108450.0,0.30462223]
[1748004213035,0.1936195,108460.0,108450.0,0.0122195]
[1748004213263,0.2561195,108460.0,108450.0,0.0122195]
[1748004213484,0.2561195,108460.0,108450.0,0.0102195]
[1748004213718,0.2561195,108460.0,108450.0,0.19463628]
[1748004213938,0.2561195,108460.0,108450.0,0.20285711]
[1748004214165,0.24689977,108460.0,108450.0,0.01844033]
[1748004214460,0.24689977,108460.0,108450.0,0.21207786]
[1748004214703,0.0184392,108460.0,108450.0,0.23973917]
[1748004214912,0.03687891,108460.0,108450.0,0.24073917]
[1748004215172,0.22127919,108460.0,108450.0,0.23151893]
[1748004215710,0.22127919,108460.0,108450.0,0.24073925]
[1748004215924,0.00921837,108470.0,108460.0,0.21205853]
[1748004216130,0.22125769,108470.0,108460.0,0.21205853]
[1748004216336,0.02765587,108470.0,108460.0,0.21205853]
[1748004216845,0.22125769,108470.0,108460.0,0.21205853]
[1748004217072,0.22125769,108470.0,108460.0,0.20283914]
[1748004217480,0.22125769,108470.0,108460.0,0.21205861]
[1748004217697,0.02765587,108470.0,108460.0,0.21205861]
[1748004217871,0.02765587,108470.0,108460.0,0.221278]
[1748004218077,0.22125777,108470.0,108460.0,0.21205861]
[1748004218286,0.01843699,108470.0,108460.0,0.221278]
[1748004218482,0.04609371,108470.0,108460.0,0.221278]
[1748004218692,0.02765587,108470.0,108460.0,0.221278]
[1748004218908,0.04609388,108470.0,108460.0,0.221278]
[1748004219111,0.0276557,108470.0,108460.0,0.221278]
[1748004219311,0.95160209,108480.0,108470.0,0.20282095]
[1748004219551,0.95160209,108480.0,108470.0,0.1936019]
[1748004219968,0.95160209,108480.0,108470.0,0.20282095]
[1748004220389,0.18437814,108490.0,108480.0,0.20280209]
[1748004220595,0.01843367,108490.0,108480.0,0.21201918]
[1748004220803,0.20480192,108480.0,108470.0,1.01918556]
[1748004221018,0.26550192,108480.0,108470.0,1.206]
[1748004221229,0.26550192,108480.0,108470.0,0.52964]
[1748004221438,0.2140202,108480.0,108470.0,0.72324173]
[1748004221642,0.2140202,108480.0,108470.0,0.71402277]
[1748004221842,0.26700217,108480.0,108470.0,0.52964]
[1748004222260,0.26500217,108480.0,108470.0,0.52964]
[1748004222471,0.26500217,108480.0,108470.0,0.71402277]
[1748004222673,0.21202003,108480.0,108470.0,0.75089845]
[1748004222883,0.22123738,108480.0,108470.0,0.76011707]
[1748004223101,0.23045566,108480.0,108470.0,0.76011707]
[1748004223313,0.22323806,108480.0,108470.0,0.74167974]
[1748004223488,0.26820226,108480.0,108470.0,0.52964]
[1748004223632,0.27020226,108480.0,108470.0,0.806]
[1748004223992,0.27020226,108480.0,108470.0,0.81521913]
[1748004224137,0.27020226,108480.0,108470.0,0.82443818]
[1748004224330,0.27020226,108480.0,108470.0,0.806]
[1748004224532,0.27020226,108480.0,108470.0,0.99038277]
[1748004224740,0.27020226,108480.0,108470.0,0.18442277]
[1748004225144,0.27020226,108480.0,108470.0,0.1936419]
[1748004225545,0.30643916,108480.0,108470.0,4e-05]
[1748004225758,0.26098406,108480.0,108470.0,4e-05]
[1748004226419,0.0132176,108480.0,108470.0,0.30392948]
[1748004226637,0.22523763,108480.0,108470.0,0.83122471]
[1748004226847,0.20680217,108480.0,108470.0,0.52964]
[1748004227053,0.23860217,108480.0,108470.0,0.72324173]
[1748004227251,0.20680217,108480.0,108470.0,0.73146061]
[1748004227457,0.004,108480.0,108470.0,0.8394435]
[1748004227676,0.004,108480.0,108470.0,1.1794435]
[1748004227914,0.004,108480.0,108470.0,1.6094435]
[1748004228114,0.004,108480.0,108470.0,1.6412435]
[1748004228946,0.004,108480.0,108470.0,1.6422435]
[1748004229160,0.004,108480.0,108470.0,1.50793177]
[1748004229398,0.002,108480.0,108470.0,1.53943177]
[1748004232993,0.002,108480.0,108470.0,1.75245177]
[1748004234182,0.002,108480.0,108470.0,1.81555177]
[1748004235357,0.002,108480.0,108470.0,1.75245177]
[1748004235802,0.002,108480.0,108470.0,1.81335177]
[1748004239184,0.002,108480.0,108470.0,1.75245177]
[1748004240637,0.002,108480.0,108470.0,1.81595177]
[1748004241013,0.002,108480.0,108470.0,2.21383177]
[1748004241461,0.002,108480.0,108470.0,2.22837262]
[1748004241667,0.002,108480.0,108470.0,7.27837262]
[1748004242098,0.002,108480.0,108470.0,7.28837262]
[1748004242529,4e-05,108500.0,108490.0,0.21200006]
[1748004242752,0.00019333,108500.0,108490.0,0.57786562]
[1748004242958,0.00019333,108500.0,108490.0,1.00846562]
[1748004243179,0.00019333,108500.0,108490.0,1.40846562]
[1748004243386,0.00019333,108500.0,108490.0,6.81300647]
[1748004243602,0.07442207,108530.0,108520.0,0.21194146]
[1748004243827,0.84038582,108550.0,108540.0,0.22111525]
[1748004244035,1.03384504,108550.0,108530.0,0.19349428]
[1748004244251,1.03384504,108550.0,108500.0,0.99927843]
[1748004244252,0.26562734,108520.0,108500.0,0.99927843]
[1748004244517,0.26624568,108510.0,108500.0,0.42954556]
[1748004244757,0.26626453,108500.0,108490.0,0.3747]
[1748004245263,0.5876984,108500.0,108490.0,0.3747]
[1748004245486,0.67724396,108500.0,108490.0,0.003]
[1748004245695,0.69178481,108500.0,108490.0,0.003]
[1748004245906,0.22646604,108490.0,108480.0,0.01469923]
[1748004246119,0.26788322,108490.0,108480.0,0.20843654]
[1748004246345,0.25866604,108490.0,108480.0,0.19921834]
[1748004246770,0.25866604,108490.0,108480.0,0.19373722]
[1748004247281,0.25866604,108490.0,108480.0,0.2029555]
[1748004247508,0.08353427,108490.0,108480.0,0.21217336]